fUST/lending_fUST_20250811
["ID","MTS","AMOUNT","RATE_DAILY","PERIOD"]
[378556937,1754913046626,-460.0,0.00019842,2]
[378556939,1754913046636,-460.0,0.00019842,2]
[378556941,1754913046645,-460.0,0.00019842,2]
[378556943,1754913046655,-475.63745788,0.00019842,2]
[378556945,1754913046665,-460.0,0.00019842,2]
[378556947,1754913046675,-1246.49,0.00019842,2]
[378556949,1754913046685,-460.0,0.00019842,2]
[378556951,1754913046695,-532.86,0.00019842,2]
[378556953,1754913046705,-460.0,0.00019842,2]
[378556955,1754913046715,-787.17,0.00019842,2]
[378556957,1754913046725,-460.0,0.00019842,2]
[378556960,1754913046735,-460.0,0.00019842,2]
[378556962,1754913046746,-460.0,0.00019842,2]
[378556964,1754913046756,-460.0,0.00019842,2]
[378556966,1754913046767,-1041.68,0.00019842,2]
[378556968,1754913046777,-460.0,0.00019842,2]
[378556970,1754913046787,-460.0,0.00019842,2]
[378556972,1754913046797,-460.0,0.00019842,2]
[378556974,1754913046807,-282.70749764,0.00019842,2]
[378556976,1754913046818,-460.0,0.00019842,2]
[378556978,1754913046829,-460.0,0.00019842,2]
[378556980,1754913046840,-460.66,0.00019842,2]
[378556982,1754913046850,-460.0,0.00019842,2]
[378556984,1754913046860,-460.0,0.00019842,2]
[378556986,1754913046870,-460.0,0.00019842,2]
[378556988,1754913046880,-460.0,0.00019842,2]
[378556990,1754913046890,-361.08311554,0.00019842,2]
[378556992,1754913046900,-460.0,0.00019842,2]
[378556994,1754913046909,-460.0,0.00019842,2]
[378556996,1754913046919,-460.0,0.00019843,2]
[378556998,1754913046930,-460.0,0.00019843,2]
[378557001,1754913046940,-460.0,0.00019843,2]
[378557003,1754913046950,-535.89,0.00019843,2]
[378557005,1754913046960,-630.86,0.00019843,2]
[378557007,1754913046970,-460.0,0.00019843,2]
[378557009,1754913046980,-1181.48,0.00019843,2]
[378557011,1754913046990,-893.39,0.00019843,2]
[378557013,1754913047000,-460.0,0.00019843,2]
[378557015,1754913047010,-460.0,0.00019843,2]
[378557017,1754913047020,-460.0,0.00019843,2]
[378557019,1754913047030,-460.0,0.00019843,2]
[378557021,1754913047040,-460.0,0.00019843,2]
[378557023,1754913047051,-460.0,0.00019843,2]
[378557025,1754913047061,-463.37657477,0.00019843,2]
[378557027,1754913047075,-625.54,0.00019843,2]
[378557029,1754913047086,-460.0,0.00019843,2]
[378557031,1754913047096,-460.0,0.00019843,2]
[378557033,1754913047106,-903.38,0.00019843,2]
[378557035,1754913047118,-472.21973355,0.00019843,2]
[378557038,1754913047128,-810.16,0.00019843,2]
[378557040,1754913047139,-460.0,0.00019843,2]
[378557042,1754913047150,-460.0,0.00019843,2]
[378557044,1754913047160,-460.0,0.00019843,2]
[378557046,1754913047172,-460.0,0.00019843,2]
[378557048,1754913047182,-460.0,0.00019843,2]
[378557050,1754913047192,-460.0,0.00019843,2]
[378557052,1754913047202,-460.0,0.00019843,2]
[378557054,1754913047212,-460.0,0.00019843,2]
[378557056,1754913047222,-460.0,0.00019843,2]
[378557058,1754913047235,-460.0,0.00019843,2]
[378557060,1754913047246,-582.6,0.00019843,2]
[378557062,1754913047256,-460.0,0.00019843,2]
[378557064,1754913047266,-460.0,0.00019843,2]
[378557066,1754913047277,-537.42,0.00019843,2]
[378557068,1754913047287,-460.0,0.00019843,2]
[378557071,1754913047298,-460.0,0.00019844,2]
[378557072,1754913047308,-460.0,0.00019844,2]
[378557075,1754913047321,-460.0,0.00019844,2]
[378557077,1754913047330,-460.0,0.00019844,2]
[378557079,1754913047340,-460.0,0.00019844,2]
[378557081,1754913047350,-460.0,0.00019844,2]
[378557083,1754913047360,-460.0,0.00019844,2]
[378557085,1754913047370,-460.0,0.00019844,2]
[378557087,1754913047380,-460.0,0.00019844,2]
[378557089,1754913047390,-460.0,0.00019844,2]
[378557091,1754913047400,-460.0,0.00019844,2]
[378557093,1754913047410,-460.0,0.00019844,2]
[378557095,1754913047420,-465.9339653,0.00019844,2]
[378557097,1754913047430,-460.0,0.00019844,2]
[378557099,1754913047440,-460.0,0.00019844,2]
[378557101,1754913047450,-460.0,0.00019844,2]
[378557103,1754913047459,-1446.05,0.00019844,2]
[378557105,1754913047469,-460.0,0.00019844,2]
[378557107,1754913047480,-460.0,0.00019844,2]
[378557109,1754913047490,-1282.92,0.00019844,2]
[378557111,1754913047500,-1818.25,0.00019844,2]
[378557114,1754913047510,-608.81,0.00019844,2]
[378557116,1754913047520,-460.0,0.00019844,2]
[378557118,1754913047530,-499.72968896,0.00019844,2]
[378557120,1754913047540,-460.0,0.00019844,2]
[378557122,1754913047549,-460.0,0.00019844,2]
[378557124,1754913047559,-460.0,0.00019844,2]
[378557126,1754913047570,-557.17317756,0.00019844,2]
[378557128,1754913047580,-460.0,0.00019844,2]
[378557130,1754913047589,-460.0,0.00019844,2]
[378557132,1754913047599,-1141.48,0.00019844,2]
[378557134,1754913047609,-460.0,0.00019844,2]
[378557136,1754913047619,-1107.89,0.00019844,2]
[378557138,1754913047629,-954.93,0.00019844,2]
[378557140,1754913047639,-937.1,0.00019844,2]
[378557142,1754913047649,-460.0,0.00019844,2]
[378557144,1754913047659,-460.0,0.00019844,2]
[378557146,1754913047668,-460.0,0.00019844,2]
[378557148,1754913047679,-214.1422116,0.00019844,2]
[378557150,1754913047689,-460.0,0.00019844,2]
[378557152,1754913047700,-460.02790009,0.00019844,2]
[378557154,1754913047710,-920.08,0.00019844,2]
[378557156,1754913047719,-803.61,0.00019844,2]
[378557159,1754913047730,-460.0,0.00019844,2]
[378557161,1754913047740,-460.0,0.00019844,2]
[378557163,1754913047750,-460.0,0.00019844,2]
[378557165,1754913047759,-460.0,0.00019844,2]
[378557167,1754913047768,-503.23,0.00019844,2]
[378557169,1754913047778,-686.76,0.00019844,2]
[378557171,1754913047788,-460.0,0.00019844,2]
[378557173,1754913047798,-955.99,0.00019844,2]
[378557175,1754913047807,-460.0,0.00019844,2]
[378557177,1754913047817,-460.0,0.00019844,2]
[378557179,1754913047828,-346.50092466,0.00019844,2]
[378557181,1754913047838,-1123.32,0.00019844,2]
[378557183,1754913047848,-932.73,0.00019844,2]
[378557185,1754913047857,-460.0,0.00019844,2]
[378557187,1754913047868,-500.0,0.00019844,2]
[378557189,1754913047878,-171.031828,0.00019863,2]
[378557191,1754913047888,-250.0,0.00019864,2]
[378557193,1754913047899,-460.0,0.0001987,2]
[378557195,1754913047908,-639.24,0.0001987,2]
[378557197,1754913047918,-8979.17,0.0001987,2]
[378557199,1754913047928,-2253.68,0.0001987,2]
[378557201,1754913047938,-460.0,0.00019871,2]
[378557203,1754913047948,-460.0,0.00019871,2]
[378557205,1754913047958,-460.0,0.00019871,2]
[378557207,1754913047968,-460.0,0.00019871,2]
[378557210,1754913047978,-460.0,0.00019871,2]
[378557212,1754913047987,-460.0,0.00019871,2]
[378557214,1754913047997,-460.0,0.00019871,2]
[378557216,1754913048007,-460.0,0.00019871,2]
[378557218,1754913048017,-460.75423887,0.00019871,2]
[378557220,1754913048027,-460.0,0.00019871,2]
[378557222,1754913048038,-460.0,0.00019871,2]
[378557224,1754913048048,-460.0,0.00019871,2]
[378557226,1754913048058,-460.0,0.00019871,2]
[378557228,1754913048068,-460.78191841,0.00019871,2]
[378557230,1754913048078,-500.90729538,0.00019871,2]
[378557232,1754913048088,-871.18,0.00019871,2]
[378557234,1754913048099,-460.0,0.00019871,2]
[378557236,1754913048109,-460.0,0.00019871,2]
[378557238,1754913048120,-460.0,0.00019871,2]
[378557240,1754913048130,-460.0,0.00019871,2]
[378557242,1754913048141,-460.0,0.00019871,2]
[378557244,1754913048152,-782.54,0.00019871,2]
[378557246,1754913048163,-460.0,0.00019871,2]
[378557248,1754913048173,-237.2272923,0.00019871,2]
[378557251,1754913048187,-460.0,0.00019871,2]
[378557253,1754913048197,-460.0,0.00019871,2]
[378557255,1754913048208,-460.0,0.00019871,2]
[378557257,1754913048219,-460.0,0.00019871,2]
[378557259,1754913048234,-791.07,0.00019871,2]
[378557261,1754913048254,-1559.71,0.00019871,2]
[378557263,1754913048264,-460.0,0.00019871,2]
[378557265,1754913048275,-460.0,0.00019871,2]
[378557267,1754913048285,-843.59,0.00019871,2]
[378557269,1754913048297,-460.0,0.00019871,2]
[378557271,1754913048308,-460.0,0.00019871,2]
[378557273,1754913048318,-516.96,0.00019871,2]
[378557275,1754913048330,-460.0,0.00019871,2]
[378557277,1754913048341,-460.0,0.00019871,2]
[378557279,1754913048351,-460.0,0.00019871,2]
[378557281,1754913048362,-460.0,0.00019871,2]
[378557283,1754913048372,-462.59665446,0.00019871,2]
[378557286,1754913048382,-460.0,0.00019871,2]
[378557288,1754913048392,-1862.31,0.00019871,2]
[378557290,1754913048402,-460.0,0.00019871,2]
[378557292,1754913048411,-460.0,0.00019871,2]
[378557294,1754913048421,-460.0,0.00019871,2]
[378557296,1754913048431,-561.42,0.00019871,2]
[378557298,1754913048440,-460.0,0.00019871,2]
[378557300,1754913048450,-460.0,0.00019871,2]
[378557302,1754913048460,-460.0,0.00019871,2]
[378557304,1754913048470,-810.36,0.00019871,2]
[378557306,1754913048479,-460.0,0.00019871,2]
[378557307,1754913048489,-591.9,0.00019871,2]
[378557308,1754913048499,-460.0,0.00019871,2]
[378557309,1754913048509,-580.12,0.00019871,2]
[378557310,1754913048518,-699.15,0.00019871,2]
[378557311,1754913048528,-765.54,0.00019871,2]
[378557312,1754913048538,-460.0,0.00019871,2]
[378557313,1754913048548,-460.0,0.00019871,2]
[378557314,1754913048558,-460.0,0.00019871,2]
[378557315,1754913048569,-460.0,0.00019871,2]
[378557316,1754913048580,-500.0,0.00019873,2]
[378557317,1754913048590,-500.0,0.00019873,2]
[378557319,1754913048600,-150.0,0.00019873,2]
[378557321,1754913048611,-500.0,0.00019873,2]
[378557323,1754913048622,-500.85934649,0.00019873,2]
[378557325,1754913048633,-920.27253676,0.00019879,2]
[378557327,1754913048643,-3490.1,0.00019879,2]
[378557329,1754913048653,-460.0,0.0001988,2]
[378557331,1754913048664,-500.0,0.0001988,2]
[378557333,1754913048673,-460.0,0.0001988,2]
[378557335,1754913048683,-500.0,0.0001988,2]
[378557338,1754913048693,-460.0,0.0001988,2]
[378557340,1754913048703,-460.0,0.0001988,2]
[378557342,1754913048712,-493.4,0.0001988,2]
[378557344,1754913048723,-460.0,0.0001988,2]
[378557346,1754913048733,-460.0,0.0001988,2]
[378557348,1754913048743,-460.0,0.0001988,2]
[378557350,1754913048754,-460.0,0.0001988,2]
[378557352,1754913048764,-460.0,0.0001988,2]
[378557354,1754913048774,-460.0,0.0001988,2]
[378557356,1754913048784,-460.0,0.0001988,2]
[378557358,1754913048794,-460.0,0.0001988,2]
[378557361,1754913048804,-460.0,0.0001988,2]
[378557363,1754913048815,-460.0,0.0001988,2]
[378557365,1754913048827,-460.0,0.0001988,2]
[378557367,1754913048838,-460.0,0.0001988,2]
[378557369,1754913048850,-460.0,0.0001988,2]
[378557395,1754913049092,-460.0,0.0001988,2]
[378557397,1754913049104,-460.0,0.0001988,2]
[378557399,1754913049114,-460.0,0.0001988,2]
[378557401,1754913049124,-484.88,0.0001988,2]
[378557403,1754913049134,-563.02,0.0001988,2]
[378557405,1754913049144,-460.0,0.0001988,2]
[378557407,1754913049154,-460.0,0.0001988,2]
[378557410,1754913049163,-460.0,0.0001988,2]
[378557411,1754913049173,-460.0,0.0001988,2]
[378557413,1754913049183,-460.0,0.0001988,2]
[378557416,1754913049192,-460.0,0.0001988,2]
[378557418,1754913049202,-460.0,0.0001988,2]
[378557420,1754913049212,-611.85,0.0001988,2]
[378557422,1754913049222,-460.0,0.0001988,2]
[378557424,1754913049234,-460.0,0.0001988,2]
[378557426,1754913049245,-460.0,0.0001988,2]
[378557428,1754913049255,-460.0,0.0001988,2]
[378557430,1754913049265,-460.0,0.0001988,2]
[378557432,1754913049276,-460.0,0.0001988,2]
[378557434,1754913049287,-460.0,0.0001988,2]
[378557436,1754913049297,-460.0,0.0001988,2]
[378557438,1754913049307,-356.50985516,0.0001988,2]
[378557440,1754913049317,-460.0,0.0001988,2]
[378557442,1754913049328,-460.0,0.0001988,2]
[378557444,1754913049339,-405.57055457,0.0001988,2]
[378557446,1754913049348,-460.0,0.0001988,2]
[378557448,1754913049358,-1258.85,0.0001988,2]
[378557450,1754913049368,-460.0,0.0001988,2]
[378557452,1754913049378,-460.0,0.0001988,2]
[378557454,1754913049388,-460.0,0.0001988,2]
[378557456,1754913049398,-460.0,0.0001988,2]
[378557458,1754913049408,-225.11203712,0.0001988,2]
[378557460,1754913049418,-460.0,0.0001988,2]
[378557462,1754913049428,-460.0,0.0001988,2]
[378557464,1754913049438,-460.0,0.0001988,2]
[378557466,1754913049448,-460.0,0.0001988,2]
[378557468,1754913049458,-381.27961022,0.0001988,2]
[378557470,1754913049468,-460.0,0.0001988,2]
[378557472,1754913049477,-460.0,0.0001988,2]
[378557474,1754913049487,-460.0,0.0001988,2]
[378557476,1754913049498,-460.0,0.0001988,2]
[378557478,1754913049509,-460.0,0.0001988,2]
[378557480,1754913049519,-460.0,0.0001988,2]
[378557482,1754913049528,-460.0,0.0001988,2]
[378557484,1754913049538,-460.0,0.0001988,2]
[378557486,1754913049548,-460.0,0.0001988,2]
[378557488,1754913049558,-467.86,0.0001988,2]
[378557491,1754913049572,-460.0,0.0001988,2]
[378557492,1754913049582,-460.0,0.0001988,2]
[378557495,1754913049591,-460.0,0.0001988,2]
[378557496,1754913049603,-460.55384015,0.0001988,2]
[378557498,1754913049612,-460.0,0.0001988,2]
[378557500,1754913049621,-460.0,0.0001988,2]
[378557502,1754913049630,-460.0,0.0001988,2]
[378557504,1754913049640,-460.0,0.0001988,2]
[378557506,1754913049649,-494.67,0.0001988,2]
[378557509,1754913049659,-1123.12,0.0001988,2]
[378557511,1754913049668,-460.0,0.0001988,2]
[378557513,1754913049678,-460.0,0.0001988,2]
[378557515,1754913049687,-460.0,0.0001988,2]
[378557517,1754913049696,-460.0,0.0001988,2]
[378557518,1754913049705,-460.0,0.0001988,2]
[378557520,1754913049715,-460.0,0.0001988,2]
[378557522,1754913049725,-322.29616032,0.0001988,7]
[378557525,1754913049734,-460.0,0.0001988,2]
[378557526,1754913049744,-300.0,0.0001988,2]
[378557528,1754913049753,-460.0,0.0001988,2]
[378557530,1754913049763,-460.0,0.0001988,2]
[378557533,1754913049772,-460.0,0.0001988,2]
[378557535,1754913049782,-460.0,0.0001988,2]
[378557537,1754913049791,-460.0,0.0001988,2]
[378557539,1754913049800,-460.0,0.0001988,2]
[378557541,1754913049809,-460.0,0.0001988,2]
[378557543,1754913049818,-460.0,0.0001988,2]
[378557545,1754913049829,-460.0,0.0001988,2]
[378557547,1754913049838,-460.0,0.0001988,2]
[378557549,1754913049847,-460.0,0.0001988,2]
[378557551,1754913049857,-460.0,0.0001988,2]
[378557553,1754913049867,-460.0,0.0001988,2]
[378557555,1754913049876,-460.0,0.0001988,2]
[378557557,1754913049885,-460.0,0.0001988,2]
[378557559,1754913049895,-474.67,0.0001988,2]
[378557561,1754913049904,-500.0,0.00019881,2]
[378557563,1754913049914,-500.0,0.00019881,2]
[378557565,1754913049924,-500.0,0.00019881,2]
[378557567,1754913049933,-500.0,0.00019882,2]
[378557569,1754913049942,-460.0,0.00019882,2]
[378557571,1754913049953,-460.0,0.00019882,2]
[378557573,1754913049962,-460.0,0.00019882,2]
[378557575,1754913049972,-460.0,0.00019882,2]
[378557577,1754913049981,-460.0,0.00019882,2]
[378557579,1754913049990,-460.0,0.00019882,2]
[378557581,1754913050000,-460.0,0.00019883,2]
[378557583,1754913050009,-538.05,0.00019883,2]
[378557585,1754913050018,-2263.24,0.00019883,2]
[378557587,1754913050027,-1844.28,0.00019883,2]
[378557589,1754913050037,-964.39,0.00019883,2]
[378557591,1754913050047,-460.0,0.00019883,2]
[378557593,1754913050056,-950.04,0.00019883,2]
[378557595,1754913050066,-460.0,0.00019883,2]
[378557597,1754913050077,-2886.44,0.00019883,2]
[378557600,1754913050088,-460.0,0.00019883,2]
[378557602,1754913050097,-460.0,0.00019883,2]
[378557604,1754913050107,-460.0,0.00019883,2]
[378557606,1754913050116,-2844.89,0.00019883,2]
[378557608,1754913050126,-460.0,0.00019883,2]
[378557610,1754913050135,-500.0,0.00019888,2]
[378557612,1754913050144,-500.0,0.00019889,2]
[378557614,1754913050155,-500.0,0.00019889,2]
[378557616,1754913050164,-151.0,0.000199,2]
[378557618,1754913050174,-151.0,0.000199,2]
[378557620,1754913050183,-151.0,0.000199,2]
[378557622,1754913050193,-18359.2422618,0.000199,2]
[378557624,1754913050203,-22581.66709318,0.00019931,2]
[378557626,1754913050213,-678.8,0.00019943,2]
[378557628,1754913050223,-4214.99,0.00019943,2]
[378557630,1754913050235,-460.0,0.00019943,2]
[378557632,1754913050245,-492.59804179,0.00019943,2]
[378557634,1754913050255,-1965.92,0.00019943,2]
[378557636,1754913050264,-918.77,0.00019943,2]
[378557638,1754913050275,-1068.84,0.00019943,2]
[378557640,1754913050285,-2626.12,0.00019943,2]
[378557642,1754913050295,-3308.25,0.00019943,2]
[378557644,1754913050305,-739.54,0.00019943,2]
[378557646,1754913050314,-460.0,0.00019943,2]
[378557648,1754913050326,-460.0,0.00019943,2]
[378557650,1754913050335,-424.71222503,0.00019943,2]
[378557652,1754913050345,-460.0,0.00019943,2]
[378557655,1754913050354,-460.0,0.00019943,2]
[378557657,1754913050364,-460.0,0.00019943,2]
[378557659,1754913050374,-2036.54,0.00019943,2]
[378557661,1754913050383,-460.0,0.00019944,2]
[378557663,1754913050392,-809.39,0.00019944,2]
[378557665,1754913050402,-386.14209737,0.00019945,2]
[378557667,1754913050411,-460.0,0.00019945,2]
[378557669,1754913050421,-460.0,0.00019945,2]
[378557671,1754913050430,-460.64414863,0.00019945,2]
[378557673,1754913050439,-460.0,0.00019945,2]
[378557675,1754913050448,-460.0,0.00019945,2]
[378557677,1754913050457,-460.0,0.00019945,2]
[378557679,1754913050467,-460.0,0.00019945,2]
[378557681,1754913050476,-466.75195852,0.00019945,2]
[378557683,1754913050485,-460.0,0.00019945,2]
[378557685,1754913050494,-460.0,0.00019945,2]
[378557687,1754913050504,-460.0,0.00019945,2]
[378557689,1754913050513,-460.0,0.00019945,2]
[378557691,1754913050522,-460.0,0.00019945,2]
[378557693,1754913050531,-460.0,0.00019945,2]
[378557695,1754913050541,-460.0,0.00019945,2]
[378557697,1754913050550,-460.0,0.00019945,2]
[378557699,1754913050560,-460.0,0.00019945,2]
[378557701,1754913050570,-460.0,0.00019945,2]
[378557703,1754913050580,-460.0,0.00019945,2]
[378557705,1754913050589,-460.0,0.00019945,2]
[378557707,1754913050599,-460.0,0.00019945,2]
[378557709,1754913050608,-460.0,0.00019945,2]
[378557711,1754913050618,-460.0,0.00019945,2]
[378557713,1754913050628,-460.0,0.00019945,2]
[378557715,1754913050637,-460.0,0.00019945,2]
[378557717,1754913050646,-463.38194712,0.00019945,2]
[378557720,1754913050656,-460.0,0.00019945,2]
[378557721,1754913050665,-460.0,0.00019945,2]
[378557723,1754913050674,-460.0,0.00019945,2]
[378557726,1754913050684,-460.0,0.00019945,2]
[378557728,1754913050693,-460.0,0.00019945,2]
[378557730,1754913050702,-460.0,0.00019945,2]
[378557732,1754913050711,-460.0,0.00019945,2]
[378557734,1754913050721,-460.0,0.00019945,2]
[378557736,1754913050730,-460.0,0.00019945,2]
[378557738,1754913050739,-460.0,0.00019945,2]
[378557740,1754913050748,-460.0,0.00019945,2]
[378557742,1754913050757,-460.0,0.00019945,2]
[378557744,1754913050766,-460.0,0.00019945,2]
[378557746,1754913050775,-460.0,0.00019945,2]
[378557748,1754913050785,-460.0,0.00019945,2]
[378557750,1754913050794,-460.0,0.00019945,2]
[378557752,1754913050803,-460.0,0.00019945,2]
[378557754,1754913050812,-460.0,0.00019945,2]
[378557756,1754913050823,-460.0,0.00019945,2]
[378557758,1754913050832,-166.64847037,0.00019945,2]
[378557760,1754913050841,-460.0,0.00019945,2]
[378557762,1754913050851,-460.0,0.00019945,2]
[378557764,1754913050860,-460.0,0.00019945,2]
[378557766,1754913050869,-460.0,0.00019945,2]
[378557768,1754913050879,-460.0,0.00019945,2]
[378557770,1754913050888,-460.0,0.00019945,2]
[378557772,1754913050896,-460.0,0.00019945,2]
[378557774,1754913050906,-460.0,0.00019945,2]
[378557776,1754913050915,-460.0,0.00019945,2]
[378557777,1754913050924,-460.0,0.00019945,2]
[378557780,1754913050933,-460.0,0.00019945,2]
[378557782,1754913050943,-417.49589713,0.00019945,2]
[378557784,1754913050952,-460.74180666,0.00019945,2]
[378557786,1754913050961,-460.0,0.00019945,2]
[378557788,1754913050970,-460.52992751,0.00019945,2]
[378557790,1754913050980,-1209.42,0.00019945,2]
[378557792,1754913050990,-460.0,0.00019945,2]
[378557794,1754913050999,-460.0,0.00019945,2]
[378557796,1754913051009,-460.0,0.00019945,2]
[378557798,1754913051018,-1129.64,0.00019945,2]
[378557800,1754913051027,-460.0,0.00019945,2]
[378557802,1754913051037,-460.0,0.00019945,2]
[378557804,1754913051046,-460.0,0.00019945,2]
[378557806,1754913051055,-460.0,0.00019945,2]
[378557808,1754913051065,-460.0,0.00019945,2]
[378557810,1754913051075,-460.0,0.00019945,2]
[378557812,1754913051085,-722.47,0.00019945,2]
[378557814,1754913051094,-460.0,0.00019945,2]
[378557816,1754913051103,-460.0,0.00019945,2]
[378557818,1754913051113,-460.0,0.00019945,2]
[378557820,1754913051123,-460.0,0.00019945,2]
[378557822,1754913051132,-460.0,0.00019945,2]
[378557824,1754913051142,-460.0,0.00019945,2]
[378557826,1754913051151,-460.0,0.00019945,2]
[378557828,1754913051161,-469.3,0.00019945,2]
[378557830,1754913051171,-460.0,0.00019945,2]
[378557832,1754913051180,-1174.05,0.00019945,2]
[378557834,1754913051189,-460.0,0.00019945,2]
[378557836,1754913051199,-460.0,0.00019945,2]
[378557838,1754913051208,-460.0,0.00019945,2]
[378557840,1754913051218,-460.0,0.00019945,2]
[378557842,1754913051231,-460.0,0.00019945,2]
[378557844,1754913051241,-460.0,0.00019945,2]
[378557846,1754913051250,-460.0,0.00019945,2]
[378557848,1754913051261,-460.0,0.00019945,2]
[378557850,1754913051270,-200.09604356,0.00019945,2]
[378557852,1754913051280,-460.0,0.00019945,2]
[378557854,1754913051290,-460.0,0.00019945,2]
[378557856,1754913051299,-499.63,0.00019945,2]
[378557858,1754913051310,-567.03,0.00019945,2]
[378557860,1754913051320,-613.62,0.00019945,2]
[378557862,1754913051332,-460.0,0.00019945,2]
[378557864,1754913051342,-460.0,0.00019945,2]
[378557866,1754913051351,-460.0,0.00019945,2]
[378557868,1754913051361,-460.0,0.00019945,2]
[378557870,1754913051370,-368.6777856,0.00019945,2]
[378557872,1754913051379,-188.42093641,0.00019945,2]
[378557881,1754913051453,-460.0,0.00019945,2]
[378557883,1754913051462,-460.0,0.00019945,2]
[378557885,1754913051472,-736.03,0.00019945,2]
[378557887,1754913051481,-460.0,0.00019945,2]
[378557889,1754913051490,-460.0,0.00019945,2]
[378557891,1754913051499,-460.0,0.00019945,2]
[378557893,1754913051508,-460.0,0.00019945,2]
[378557895,1754913051518,-460.0,0.00019945,2]
[378557898,1754913051527,-832.58,0.00019945,2]
[378557900,1754913051537,-460.0,0.00019945,2]
[378557902,1754913051546,-460.0,0.00019945,2]
[378557904,1754913051555,-460.0,0.00019945,2]
[378557906,1754913051565,-460.0,0.00019945,2]
[378557908,1754913051576,-460.0,0.00019945,2]
[378557910,1754913051585,-460.0,0.00019945,2]
[378557912,1754913051594,-498.21,0.00019945,2]
[378557914,1754913051603,-460.0,0.00019945,2]
[378557916,1754913051613,-460.0,0.00019945,2]
[378557918,1754913051623,-460.0,0.00019945,2]
[378557920,1754913051632,-460.0,0.00019945,2]
[378557922,1754913051642,-460.0,0.00019945,2]
[378557924,1754913051651,-460.0,0.00019945,2]
[378557926,1754913051660,-751.18,0.00019945,2]
[378557928,1754913051669,-460.0,0.00019945,2]
[378557930,1754913051678,-460.0,0.00019945,2]
[378557932,1754913051687,-646.2,0.00019945,2]
[378557934,1754913051695,-460.0,0.00019945,2]
[378557935,1754913051704,-460.0,0.00019945,2]
[378557938,1754913051714,-460.0,0.00019945,2]
[378557940,1754913051723,-460.0,0.00019945,2]
[378557942,1754913051732,-1326.57,0.00019945,2]
[378557943,1754913051742,-460.0,0.00019945,2]
[378557945,1754913051751,-452.77101132,0.00019945,2]
[378557947,1754913051760,-460.0,0.00019945,2]
[378557949,1754913051769,-460.0,0.00019945,2]
[378557951,1754913051779,-460.0,0.00019945,2]
[378557953,1754913051788,-460.0,0.00019945,2]
[378557955,1754913051798,-460.0,0.00019945,2]
[378557957,1754913051806,-912.97,0.00019945,2]
[378557959,1754913051815,-460.0,0.00019945,2]
[378557961,1754913051825,-460.0,0.00019945,2]
[378557963,1754913051834,-460.0,0.00019945,2]
[378557965,1754913051843,-460.0,0.00019945,2]
[378557967,1754913051852,-460.0,0.00019945,2]
[378557969,1754913051861,-460.0,0.00019945,2]
[378557971,1754913051870,-593.37,0.00019945,2]